fUSD/lending_fUSD_20250519
["ID","MTS","AMOUNT","RATE_DAILY","PERIOD"]
[361568048,1747617057542,-152.54010217,0.00013808,2]
[361568049,1747617057551,-400.0,0.00013808,2]
[361568050,1747617057560,-400.0,0.00013808,2]
[361568051,1747617057569,-400.0,0.00013808,2]
[361568052,1747617057579,-151.0,0.00013808,2]
[361568053,1747617057588,-151.0,0.00013808,2]
[361568054,1747617057598,-435.67,0.00013808,2]
[361568055,1747617057607,-400.0,0.00013808,2]
[361568056,1747617057616,-151.0,0.00013808,2]
[361568057,1747617057625,-151.0,0.00013808,2]
[361568058,1747617057636,-400.0,0.00013808,2]
[361568059,1747617057644,-151.0,0.00013808,2]
[361568060,1747617057653,-151.0,0.00013808,2]
[361568061,1747617057663,-1607.05,0.00013808,2]
[361568062,1747617057672,-5189.58,0.00013808,2]
[361568063,1747617057681,-400.0,0.00013808,2]
[361568064,1747617057690,-926.305661,0.00013808,2]
[361568065,1747617057701,-400.0,0.00013808,2]
[361568066,1747617057710,-926.305661,0.00013808,2]
[361568067,1747617057719,-943.81,0.00013808,2]
[361568068,1747617057729,-926.305661,0.00013808,2]
[361568069,1747617057739,-400.0,0.00013808,2]
[361568070,1747617057748,-1094.67,0.00013808,2]
[361568071,1747617057759,-400.0,0.00013808,2]
[361568072,1747617057770,-278.364026,0.00013808,2]
[361568073,1747617057780,-669.82,0.00013808,2]
[361568074,1747617057789,-477.23,0.00013808,2]
[361568075,1747617057799,-400.0,0.00013808,2]
[361568076,1747617057808,-1142.9,0.00013808,2]
[361568077,1747617057818,-400.0,0.00013808,2]
[361568078,1747617057827,-1152.22,0.00013808,2]
[361568079,1747617057836,-400.0,0.00013808,2]
[361568080,1747617057845,-454.33,0.00013808,2]
[361568081,1747617057855,-2214.8,0.00013808,2]
[361568082,1747617057864,-529.18,0.00013808,2]
[361568083,1747617057874,-507.4,0.00013808,2]
[361568084,1747617057884,-400.0,0.00013808,2]
[361568085,1747617057895,-400.0,0.00013808,2]
[361568086,1747617057905,-151.0,0.00013808,2]
[361568087,1747617057915,-151.0,0.00013808,2]
[361568088,1747617057924,-546.39,0.00013808,2]
[361568089,1747617057934,-151.0,0.00013808,2]
[361568090,1747617057944,-400.0,0.00013808,2]
[361568091,1747617057954,-7697.2,0.00013808,2]
[361568092,1747617057963,-1566.66,0.00013808,2]
[361568093,1747617057973,-151.0,0.00013808,2]
[361568094,1747617057983,-289.658726,0.00013808,2]
[361568095,1747617057992,-1259.99,0.00013808,2]
[361568096,1747617058002,-1000.0,0.00013808,2]
[361568097,1747617058011,-822.17,0.00013808,2]
[361568098,1747617058021,-400.0,0.00013808,2]
[361568099,1747617058031,-1565.61,0.00013808,2]
[361568100,1747617058040,-621.43,0.00013808,2]
[361568101,1747617058049,-400.0,0.00013808,2]
[361568102,1747617058059,-846.53,0.00013808,2]
[361568103,1747617058069,-400.0,0.00013808,2]
[361568104,1747617058079,-663.35,0.00013808,2]
[361568105,1747617058088,-471.12,0.00013808,2]
[361568106,1747617058097,-443.13,0.00013808,2]
[361568107,1747617058108,-7289.93,0.00013808,2]
[361568108,1747617058117,-1082.13,0.00013808,2]
[361568109,1747617058126,-1086.5,0.00013808,2]
[361568110,1747617058136,-400.0,0.00013808,2]
[361568111,1747617058147,-7401.13,0.00013808,2]
[361568112,1747617058157,-181.61789515,0.00013808,2]
[361568113,1747617058167,-942.68,0.00013808,2]
[361568114,1747617058176,-400.0,0.00013808,2]
[361568115,1747617058186,-656.58,0.00013808,2]
[361568116,1747617058197,-400.0,0.00013808,2]
[361568117,1747617058208,-653.07,0.00013808,2]
[361568118,1747617058218,-400.0,0.00013808,2]
[361568119,1747617058229,-400.0,0.00013808,2]
[361568120,1747617058239,-2672.53,0.00013808,2]
[361568121,1747617058248,-9906.17,0.00013808,2]
[361568122,1747617058260,-1676.75,0.00013808,2]
[361568123,1747617058269,-400.0,0.00013808,2]
[361568124,1747617058278,-1135.28,0.00013808,2]
[361568125,1747617058287,-709.85,0.00013808,2]
[361568126,1747617058296,-400.0,0.00013808,2]
[361568127,1747617058305,-400.0,0.00013808,2]
[361568128,1747617058315,-400.0,0.00013808,2]
[361568129,1747617058324,-400.0,0.00013808,2]
[361568130,1747617058333,-400.0,0.00013808,2]
[361568131,1747617058342,-2519.58,0.00013808,2]
[361568132,1747617058351,-400.0,0.00013808,2]
[361568133,1747617058360,-400.0,0.00013808,2]
[361568134,1747617058373,-585.76,0.00013808,2]
[361568135,1747617058382,-639.11,0.00013808,2]
[361568136,1747617058391,-460.59,0.00013808,2]
[361568137,1747617058400,-400.0,0.00013808,2]
[361568138,1747617058409,-1306.51,0.00013808,2]
[361568139,1747617058418,-400.0,0.00013808,2]
[361568140,1747617058427,-641.2,0.00013808,2]
[361568141,1747617058436,-400.0,0.00013808,2]
[361568142,1747617058446,-400.0,0.00013808,2]
[361568143,1747617058455,-400.0,0.00013808,2]
[361568144,1747617058464,-1294.94,0.00013808,2]
[361568145,1747617058473,-400.0,0.00013808,2]
[361568146,1747617058482,-258.9199018,0.00013808,2]
[361568147,1747617058491,-400.0,0.00013808,2]
[361568148,1747617058500,-400.0,0.00013808,2]
[361568149,1747617058509,-1269.26,0.00013808,2]
[361568150,1747617058518,-1163.08,0.00013808,2]
[361568151,1747617058529,-400.0,0.00013808,2]
[361568152,1747617058538,-4131.17,0.00013808,2]
[361568153,1747617058548,-620.16,0.00013808,2]
[361568154,1747617058557,-645.11,0.00013808,2]
[361568155,1747617058567,-637.28,0.00013808,2]
[361568156,1747617058575,-458.26,0.00013808,2]
[361568157,1747617058584,-464.95,0.00013808,2]
[361568158,1747617058594,-8592.22,0.00013808,2]
[361568159,1747617058603,-966.97,0.00013808,2]
[361568160,1747617058614,-444.28,0.00013808,2]
[361568161,1747617058624,-749.38,0.00013808,2]
[361568162,1747617058635,-12375.41,0.00013808,2]
[361568163,1747617058644,-205.776915,0.00013808,2]
[361568164,1747617058654,-205.776915,0.00013808,2]
[361568165,1747617058663,-400.0,0.00013808,2]
[361568166,1747617058673,-907.5,0.00013808,2]
[361568167,1747617058683,-205.776915,0.00013808,2]
[361568168,1747617058692,-400.0,0.00013808,2]
[361568169,1747617058702,-400.0,0.00013808,2]
[361568170,1747617058712,-151.0,0.00013808,2]
[361568171,1747617058721,-151.0,0.00013808,2]
[361568172,1747617058802,-205.776915,0.00013808,2]
[361568173,1747617058811,-151.0,0.00013808,2]
[361568174,1747617058821,-205.776915,0.00013808,2]
[361568175,1747617058830,-205.776915,0.00013808,2]
[361568176,1747617058839,-2776.05,0.00013808,2]
[361568177,1747617058849,-1412.84,0.00013808,2]
[361568178,1747617058858,-400.0,0.00013808,2]
[361568179,1747617058867,-400.0,0.00013808,2]
[361568180,1747617058876,-16617.65,0.00013808,2]
[361568181,1747617058886,-4604.95,0.00013808,2]
[361568182,1747617058895,-559.64,0.00013808,2]
[361568183,1747617058904,-400.0,0.00013808,2]
[361568184,1747617058914,-431.82,0.00013808,2]
[361568185,1747617058924,-512.48,0.00013808,2]
[361568186,1747617058933,-400.0,0.00013808,2]
[361568187,1747617058942,-165.90964589,0.00013808,2]
[361568188,1747617058951,-1466.24,0.00013808,2]
[361568189,1747617058960,-570.17,0.00013808,2]
[361568190,1747617058970,-400.0,0.00013808,2]
[361568191,1747617058979,-932.51,0.00013808,2]
[361568192,1747617058988,-1056.4,0.00013808,2]
[361568193,1747617058997,-583.52,0.00013808,2]
[361568194,1747617059007,-1242.83,0.00013808,2]
[361568195,1747617059015,-1345.56,0.00013808,2]
[361568196,1747617059025,-400.0,0.00013808,2]
[361568197,1747617059036,-400.0,0.00013808,2]
[361568198,1747617059045,-400.0,0.00013808,2]
[361568199,1747617059054,-151.0,0.00013808,2]
[361568200,1747617059063,-151.0,0.00013808,2]
[361568201,1747617059072,-2305.78,0.00013808,2]
[361568202,1747617059081,-400.0,0.00013808,2]
[361568203,1747617059090,-927.93,0.00013808,2]
[361568204,1747617059099,-400.0,0.00013808,2]
[361568205,1747617059108,-540.99,0.00013808,2]
[361568206,1747617059117,-8320.0,0.00013808,2]
[361568207,1747617059126,-1578.33,0.00013808,2]
[361568208,1747617059135,-528.44,0.00013808,2]
[361568209,1747617059145,-151.0,0.00013808,2]
[361568210,1747617059153,-2185.52,0.00013808,2]
[361568211,1747617059162,-151.0,0.00013808,2]
[361568212,1747617059171,-151.0,0.00013808,2]
[361568213,1747617059180,-81084.11,0.00013808,2]
[361568214,1747617059189,-400.0,0.00013808,2]
[361568215,1747617059198,-779.6,0.00013808,2]
[361568216,1747617059207,-1239.09,0.00013808,2]
[361568217,1747617059216,-799.2,0.00013808,2]
[361568218,1747617059225,-151.0,0.00013808,2]
[361568219,1747617059235,-151.0,0.00013808,2]
[361568220,1747617059244,-151.0,0.00013808,2]
[361568221,1747617059254,-400.0,0.00013808,2]
[361568222,1747617059263,-400.0,0.00013808,2]
[361568223,1747617059272,-2702.01,0.00013808,2]
[361568224,1747617059284,-400.0,0.00013808,2]
[361568225,1747617059293,-1049.85,0.00013808,2]
[361568226,1747617059302,-649.6,0.00013808,2]
[361568227,1747617059311,-1304.48,0.00013808,2]
[361568228,1747617059321,-400.0,0.00013808,2]
[361568229,1747617059330,-793.68,0.00013808,2]
[361568230,1747617059339,-400.0,0.00013808,2]
[361568231,1747617059347,-2051.57,0.00013808,2]
[361568232,1747617059356,-418.26,0.00013808,2]
[361568233,1747617059368,-1022.4,0.00013808,2]
[361568234,1747617059378,-1437.38892082,0.00013808,2]
[361568235,1747617059937,-1975.33058266,0.00013808,2]
[361568236,1747617060594,-515.38056113,0.00013774,2]
[361568237,1747617060607,-337.23243887,0.00013774,2]
[361568238,1747617060617,-571.18049652,0.00013808,2]
[361568239,1747617060626,-12.0482861,0.00013808,2]
[361568240,1747617060714,-271.26697885,0.00013808,2]
[361568241,1747617060729,-116.68473505,0.00013808,2]
[361568242,1747617060738,-400.0,0.00013808,2]
[361568243,1747617060747,-49.11168475,0.00013808,2]
[361568244,1747617061592,-400.0,0.00013698,2]
[361568245,1747617061601,-83.81452646,0.00013808,2]
[361568246,1747617061612,-267.07378879,0.00013808,2]
[361568247,1747617061622,-400.0,0.00013808,2]
[361568248,1747617061631,-444.98,0.00013808,2]
[361568249,1747617061640,-69.44810423,0.00013808,2]
[361568250,1747617061657,-330.55189577,0.00013808,2]
[361568251,1747617061666,-400.0,0.00013808,2]
[361568252,1747617061675,-1539.43,0.00013808,2]
[361568253,1747617061684,-151.0,0.00013808,2]
[361568254,1747617061693,-400.0,0.00013808,2]
[361568255,1747617061702,-51.15076357,0.00013808,2]
[361568256,1747617061713,-99.84923643,0.00013808,2]
[361568257,1747617061722,-1050.70075357,0.00013808,2]
[361568258,1747617061756,-365.71924643,0.00013808,2]
[361568259,1747617061765,-151.0,0.00013808,2]
[361568260,1747617061774,-1091.56,0.00013808,2]
[361568261,1747617061787,-400.0,0.00013808,2]
[361568262,1747617061796,-400.0,0.00013808,2]
[361568263,1747617061805,-771.82,0.00013808,2]
[361568264,1747617061815,-1130.84,0.00013808,2]
[361568265,1747617061824,-400.0,0.00013808,2]
[361568266,1747617061834,-2464.11,0.00013808,2]
[361568267,1747617061957,-1237.9,0.00013808,2]
[361568268,1747617061968,-630.98,0.00013808,2]
[361568269,1747617061978,-151.0,0.00013808,2]
[361568270,1747617061988,-151.0,0.00013808,2]
[361568271,1747617061997,-297.611446,0.00013808,2]
[361568272,1747617062007,-151.0,0.00013808,2]
[361568273,1747617062017,-766.92,0.00013808,2]
[361568274,1747617062028,-659.94,0.00013808,2]
[361568275,1747617062039,-151.0,0.00013808,2]
[361568276,1747617062047,-151.0,0.00013808,2]
[361568277,1747617062056,-487.07,0.00013808,2]
[361568278,1747617062065,-151.0,0.00013808,2]
[361568279,1747617062075,-151.0,0.00013808,2]
[361568280,1747617062084,-151.0,0.00013808,2]
[361568281,1747617062093,-525.15,0.00013808,2]
[361568282,1747617062104,-446.69,0.00013808,2]
[361568283,1747617062114,-599.49,0.00013808,2]
[361568284,1747617062123,-151.0,0.00013808,2]
[361568285,1747617062134,-151.0,0.00013808,2]
[361568286,1747617062143,-420.77170961,0.00013808,2]
[361568287,1747617062152,-229.57014289,0.00013808,2]
[361568288,1747617062164,-333.81985711,0.00013808,2]
[361568289,1747617062173,-1659.61,0.00013808,2]
[361568290,1747617062182,-151.0,0.00013808,2]
[361568291,1747617062191,-190.47132519,0.00013808,2]
[361568292,1747617199685,183.62,0.00010922,2]
[361568293,1747617199713,221.92,0.00010922,2]
[361568294,1747617311212,1102.95919932,0.00027397,120]
[361568295,1747617398429,150.0,0.00014,5]
[361568296,1747617929003,1147.37459281,0.00011,2]
[361568297,1747618053088,-203.05,0.00012658,2]
[361568298,1747618053111,-200.0,0.00012683,2]
[361568299,1747618053133,-1674.35,0.00012705,2]
[361568300,1747618053155,-165.43,0.00012712,2]
[361568301,1747618053177,-163.37670442,0.00012721,2]
[361568310,1747618183856,385.26,0.0001075,2]
[361568314,1747618215919,202.0,0.00012535,2]
[361568315,1747618216949,167.12216375,0.00011781,7]
[361568328,1747618232372,-500.0,0.00012667,2]
[361568329,1747618232381,-39.67329558,0.00012721,2]
[361568330,1747618232391,-200.0,0.00012721,2]
[361568331,1747618232400,-200.0,0.00012722,2]
[361568332,1747618232409,-166.86,0.00012731,2]
[361568333,1747618232418,-250.0,0.00012735,2]
[361568334,1747618232427,-1000.0,0.00012796,2]
[361568335,1747618232437,-560.32,0.00012829,2]
[361568336,1747618232447,-385.26,0.00013013,2]
[361568337,1747618232456,-1198.357,0.00013424,2]
[361568338,1747618232467,-250.0,0.00013441,2]
[361568339,1747618232477,-207.4,0.0001359,2]
[361568340,1747618232486,-1200.0,0.00013597,2]
[361568341,1747618232495,-1496.85441773,0.00013598,2]
[361568342,1747618232504,-172.0700252,0.00013598,2]
[361568343,1747618232513,-2042.69428057,0.00013598,2]
[361568344,1747618232522,-611.51098092,0.000136,3]
[361568345,1747618232534,-291.26119028,0.000136,3]
[361568346,1747618232545,-1260.23074267,0.000136,3]
[361568347,1747618232602,-942.95318344,0.000136,3]
[361568348,1747618232613,-414.93317152,0.000136,3]
[361568349,1747618232641,-2145.020002,0.000136,3]
[361568350,1747618232652,-487.56775065,0.000136,3]
[361568351,1747618232664,-575.40914099,0.000136,3]
[361568352,1747618232675,-9001.93435004,0.000136,3]
[361568353,1747618232687,-519.20423304,0.000136,3]
[361568371,1747618238307,-716.94656231,0.00013196,2]
[361568382,1747618240440,-4987.74104026,0.00013196,2]
[361568383,1747618240452,-10262.73590952,0.000136,3]
[361568384,1747618240529,-1402.275,0.000136,3]
[361568385,1747618240541,-12084.96434493,0.000136,3]
[361568386,1747618240550,-457.94,0.000136,2]
[361568387,1747618240560,-1496.85441766,0.00013632,2]
[361568388,1747618240569,-2042.69428054,0.00013632,2]
[361568389,1747618240578,-150.0,0.00013664,2]
[361568390,1747618240588,-1496.85441766,0.00013665,2]
[361568391,1747618240597,-2042.69428054,0.00013665,2]
[361568392,1747618240607,-360.53791438,0.00013668,2]
[361568393,1747618240616,-26986.50041799,0.00013669,2]
[361568394,1747618240626,-500.0,0.00013673,2]
[361568395,1747618240635,-500.0,0.00013673,2]
[361568396,1747618240644,-500.0,0.00013673,2]
[361568397,1747618240653,-285.032281,0.0001369,2]
[361568398,1747618240663,-400.0,0.00013698,2]
[361568399,1747618240673,-400.0,0.00013698,2]
[361568400,1747618240682,-400.0,0.00013698,2]
[361568401,1747618240691,-400.0,0.00013698,2]
[361568402,1747618240700,-400.0,0.00013698,2]
[361568403,1747618240709,-400.0,0.00013698,2]
[361568404,1747618240719,-400.0,0.00013698,2]
[361568405,1747618240729,-400.0,0.00013698,2]
[361568406,1747618240738,-433.9,0.00013698,2]
[361568407,1747618240747,-400.0,0.00013698,2]
[361568408,1747618240756,-400.0,0.00013698,2]
[361568409,1747618240766,-400.0,0.00013698,2]
[361568410,1747618240775,-400.0,0.00013698,2]
[361568411,1747618240784,-771.03,0.00013698,2]
[361568413,1747618240794,-400.0,0.00013698,2]
[361568414,1747618240803,-287.00498643,0.00013698,2]
[361568416,1747618240812,-400.0,0.00013698,2]
[361568418,1747618240821,-400.0,0.00013698,2]
[361568419,1747618240831,-481.08,0.00013698,2]
[361568420,1747618240840,-400.0,0.00013698,2]
[361568421,1747618240849,-400.0,0.00013698,2]
[361568422,1747618240859,-400.0,0.00013698,2]
[361568423,1747618240868,-500.0,0.00013698,2]
[361568425,1747618240878,-500.0,0.00013698,2]
[361568426,1747618240888,-500.0,0.00013698,2]
[361568427,1747618240897,-400.0,0.00013698,2]
[361568428,1747618240906,-559.38,0.00013698,2]
[361568429,1747618240915,-691.91,0.00013698,2]
[361568430,1747618240924,-400.0,0.00013698,2]
[361568431,1747618240933,-400.0,0.00013698,2]
[361568432,1747618240942,-957.69,0.00013698,2]
[361568433,1747618240951,-1002.27841792,0.00013698,2]
[361568434,1747618240960,-450.73011889,0.00013698,2]
[361568435,1747618240970,-400.0,0.00013698,2]
[361568436,1747618240979,-400.0,0.00013698,2]
[361568437,1747618240988,-400.0,0.00013698,2]
[361568438,1747618240998,-400.0,0.00013698,2]
[361568439,1747618241008,-400.0,0.00013698,2]
[361568440,1747618241017,-400.0,0.00013698,2]
[361568441,1747618241026,-526.42,0.00013698,2]
[361568442,1747618241035,-400.0,0.00013698,2]
[361568443,1747618241045,-500.0,0.00013698,2]
[361568444,1747618241054,-861.53,0.00013698,2]
[361568445,1747618241064,-500.0,0.00013698,2]
[361568446,1747618241073,-400.0,0.00013698,2]
[361568447,1747618241086,-400.0,0.00013698,2]
[361568448,1747618241096,-400.0,0.00013698,2]
[361568449,1747618241105,-400.0,0.00013698,2]
[361568450,1747618241115,-500.0,0.00013698,2]
[361568451,1747618241123,-400.0,0.00013698,2]
[361568452,1747618241133,-1255.78,0.00013698,2]
[361568453,1747618241142,-500.0,0.00013698,2]
[361568454,1747618241151,-400.0,0.00013698,2]
[361568455,1747618241161,-400.0,0.00013698,2]
[361568456,1747618241170,-400.0,0.00013698,2]
[361568457,1747618241179,-166.434673,0.00013698,2]
[361568458,1747618241188,-4941.837344,0.00013698,2]
[361568459,1747618241197,-400.0,0.00013698,2]
[361568460,1747618241207,-400.0,0.00013698,2]
[361568461,1747618241219,-400.0,0.00013698,2]
[361568462,1747618241228,-400.15248218,0.00013698,2]
[361568463,1747618241238,-1430.755593,0.00013698,2]
[361568464,1747618241248,-400.0,0.00013698,2]
[361568465,1747618241257,-289.22394018,0.00013698,2]
[361568466,1747618241266,-400.0,0.00013698,2]
[361568467,1747618241276,-400.0,0.00013698,2]
[361568468,1747618241285,-400.0,0.00013698,2]
[361568469,1747618241295,-405.72320909,0.00013698,2]
[361568470,1747618241304,-400.0,0.00013698,2]
[361568471,1747618241313,-400.0,0.00013698,2]
[361568472,1747618241322,-400.0,0.00013698,2]
[361568473,1747618241331,-400.0,0.00013698,2]
[361568474,1747618241341,-699.32,0.00013698,2]
[361568475,1747618241350,-400.0,0.00013698,2]
[361568476,1747618241359,-1408.464458,0.00013698,2]
[361568477,1747618241368,-400.0,0.00013698,2]
[361568478,1747618241377,-329.73266062,0.00013698,2]
[361568479,1747618241387,-400.0,0.00013698,2]
[361568480,1747618241396,-400.0,0.00013698,2]
[361568481,1747618241405,-400.0,0.00013698,2]
[361568482,1747618241414,-400.0,0.00013698,2]
[361568483,1747618241423,-400.0,0.00013698,2]
[361568484,1747618241432,-400.0,0.00013698,2]
[361568485,1747618241441,-400.0,0.00013698,2]
[361568486,1747618241450,-447.07,0.00013698,2]
[361568487,1747618241460,-779.25,0.00013698,2]
[361568488,1747618241472,-272.41223521,0.00013698,2]
[361568489,1747618241482,-400.0,0.00013698,2]
[361568490,1747618241491,-400.0,0.00013698,2]
[361568491,1747618241500,-202.30390307,0.00013698,2]
[361568492,1747618241510,-400.0,0.00013698,2]
[361568493,1747618241519,-387.1666385,0.00013698,2]
[361568494,1747618241528,-504.84702266,0.00013698,2]
[361568495,1747618241537,-400.0,0.00013698,2]
[361568496,1747618241546,-400.0,0.00013698,2]
[361568497,1747618241555,-401.34427155,0.00013698,2]
[361568498,1747618241565,-175.795346,0.00013698,2]
[361568499,1747618241574,-400.0,0.00013698,2]
[361568500,1747618241583,-400.0,0.00013698,2]
[361568501,1747618241592,-400.0,0.00013698,2]
[361568502,1747618241601,-400.0,0.00013698,2]
[361568503,1747618241611,-400.0,0.00013698,2]
[361568504,1747618241620,-400.0,0.00013698,2]
[361568505,1747618241629,-400.0,0.00013698,2]
[361568506,1747618241639,-554.77,0.00013698,2]
[361568507,1747618241648,-400.0,0.00013698,2]
[361568508,1747618241657,-400.0,0.00013698,2]
[361568509,1747618241667,-400.0,0.00013698,2]
[361568510,1747618241677,-500.0,0.00013698,2]
[361568511,1747618241686,-441.1218144,0.00013698,2]
[361568512,1747618241695,-497.16,0.00013698,2]
[361568513,1747618241705,-386.88096896,0.00013698,2]
[361568514,1747618241716,-290.22478106,0.00013698,2]
[361568515,1747618241763,-109.77521894,0.00013698,2]
[361568516,1747618241773,-400.0,0.00013698,2]
[361568517,1747618241783,-400.0,0.00013698,2]
[361568518,1747618241792,-400.0,0.00013698,2]
[361568519,1747618241803,-456.45,0.00013698,2]
[361568520,1747618241812,-442.48,0.00013698,2]
[361568521,1747618241822,-400.0,0.00013698,2]
[361568522,1747618241832,-400.0,0.00013698,2]
[361568523,1747618241840,-400.0,0.00013698,2]
[361568524,1747618241850,-400.0,0.00013698,2]
[361568525,1747618241859,-1227.04,0.00013698,2]
[361568526,1747618241869,-400.0,0.00013698,2]
[361568527,1747618241878,-505.55932091,0.00013698,2]
[361568528,1747618241887,-400.0,0.00013698,2]
[361568529,1747618241897,-400.0,0.00013698,2]
[361568530,1747618241906,-400.0,0.00013698,2]
[361568531,1747618241915,-229.26076618,0.00013698,2]
[361568532,1747618241924,-450.53892828,0.00013698,2]
[361568533,1747618241934,-400.0,0.00013698,2]
[361568534,1747618241943,-400.0,0.00013698,2]
[361568535,1747618241952,-450.78524727,0.00013698,2]
[361568536,1747618241961,-546.96,0.00013698,2]
[361568537,1747618241971,-400.0,0.00013698,2]
[361568538,1747618241980,-400.0,0.00013698,2]
[361568539,1747618241990,-400.0,0.00013698,2]
[361568540,1747618242000,-400.0,0.00013698,2]
[361568541,1747618242009,-400.0,0.00013698,2]
[361568542,1747618242019,-400.0,0.00013698,2]
[361568543,1747618242028,-400.0,0.00013698,2]
[361568544,1747618242038,-400.0,0.00013698,2]
[361568545,1747618242048,-486.46142268,0.00013698,2]
[361568546,1747618242057,-400.0,0.00013698,2]
[361568547,1747618242067,-400.0,0.00013698,2]
[361568548,1747618242077,-400.0,0.00013698,2]
[361568549,1747618242090,-400.0,0.00013698,2]
[361568550,1747618242100,-400.0,0.00013698,2]
[361568551,1747618242110,-400.0,0.00013698,2]
[361568552,1747618242119,-400.0,0.00013698,2]
[361568553,1747618242130,-588.29,0.00013698,2]
[361568554,1747618242139,-639.11,0.00013698,2]
[361568555,1747618242148,-448.89,0.00013698,2]
[361568556,1747618242159,-400.0,0.00013698,2]
[361568557,1747618242168,-400.0,0.00013698,2]
[361568558,1747618242177,-400.0,0.00013698,2]
[361568559,1747618242187,-400.0,0.00013698,2]
[361568560,1747618242196,-429.91,0.00013698,2]
[361568561,1747618242205,-400.0,0.00013698,2]
[361568562,1747618242215,-156.027651,0.00013698,2]
[361568563,1747618242225,-400.0,0.00013698,2]
[361568564,1747618242234,-400.0,0.00013698,2]
[361568565,1747618242244,-400.0,0.00013698,2]
[361568566,1747618242253,-400.0,0.00013698,2]
[361568567,1747618242263,-400.0,0.00013698,2]
[361568568,1747618242272,-400.0,0.00013698,2]
[361568569,1747618242282,-400.0,0.00013698,2]
[361568570,1747618242291,-400.0,0.00013698,2]
[361568571,1747618242301,-391.38284598,0.00013698,2]
[361568572,1747618242310,-400.0,0.00013698,2]
[361568573,1747618242319,-297.77,0.00013698,2]
[361568574,1747618242328,-682.96,0.00013698,2]
[361568575,1747618242337,-279.85270678,0.00013698,2]
[361568576,1747618242347,-400.0,0.00013698,2]
[361568577,1747618242356,-400.0,0.00013698,2]
[361568578,1747618242366,-463.10007095,0.00013698,2]
[361568579,1747618242376,-400.0,0.00013698,2]
[361568580,1747618242386,-158.3128735,0.00013698,2]
[361568581,1747618242395,-546.28,0.00013698,2]
[361568582,1747618242404,-630.95,0.00013698,2]
[361568583,1747618242414,-400.0,0.00013698,2]
[361568584,1747618242423,-659.72,0.00013698,2]
[361568585,1747618242432,-400.96682454,0.00013698,2]
[361568586,1747618242442,-462.02,0.00013698,2]
[361568587,1747618242451,-400.0,0.00013698,2]
[361568588,1747618242461,-400.0,0.00013698,2]
[361568589,1747618242472,-400.0,0.00013698,2]
[361568590,1747618242482,-400.0,0.00013698,2]
[361568591,1747618242491,-400.0,0.00013698,2]
[361568592,1747618242502,-400.0,0.00013698,2]
[361568593,1747618242512,-400.0,0.00013698,2]
[361568594,1747618242521,-400.0,0.00013698,2]
[361568595,1747618242531,-400.0,0.00013698,2]
[361568596,1747618242540,-400.0,0.00013698,2]
[361568597,1747618242550,-400.0,0.00013698,2]
[361568598,1747618242559,-400.0,0.00013698,2]
[361568599,1747618242820,-400.0,0.00013698,2]
[361568600,1747618242835,-400.0,0.00013698,2]
[361568601,1747618242844,-400.0,0.00013698,2]